[Event "67th Mexican-ch Open 2022"]
[Site "Chihuahua"]
[Date "2022.04.16"]
[Round "6.10"]
[White "Torres Rosas, Luis Carlos"]
[Black "Rascon Vega, Alfonso"]
[Result "1/2-1/2"]
[ECO "C55"]
[WhiteElo "2356"]
[BlackElo "2107"]
[Annotator "TA"]
[PlyCount "70"]
[EventDate "2022.04.12"]
[EventType "swiss"]
[EventCountry "MEX"]
[SourceTitle "playchess.com"]
[Source "ChessBase"]
[SourceQuality "1"]
[TimeControl "5400+30"]

{[%evp 9,70,27,34,38,39,35,43,52,46,0,31,0,18,3,31,0,0,0,0,-42,-28,-18,0,-7,8,9,91,0,0,0,0,0,13,0,-19,-46,20,0,47,-6,-1,-12,15,-1,21,18,16,16,63,55,67,32,101,102,99,82,83,89,109,29,34,29,107]} 1. e4 {[%emt 0:01:01]} e5 {[%emt 0:00:11]} 2. Nf3 {[%emt 0:00:06]} Nc6 {[%emt 0:00:09]} 3. Bc4 {[%emt 0:00:06]} Nf6 {[%emt 0:00:15]} 4. d3 {[%emt 0:01:04]} h6 {[%emt 0:00:54]} 5. c3 {[%emt 0:02:10]} d6 {[%emt 0:00:21]} 6. a4 {[%emt 0:00:29][%cal Ba2a4,Ba4a5][%mdl 32] C55: Two Knights: 4 d3, 4 d4 exd4 5 e5 and Max Lange Attack.} g6 {[%emt 0:00:12]} 7. O-O {[%emt 0:04:29]} Bg7 {[%emt 0:00:30]} 8. a5 {[%emt 0:03:28] White is slightly better.} a6 {[%emt 0:00:09]} 9. b4 {[%emt 0:04:52]} (9. Re1 $14) 9... O-O {[%emt 0:00:27]} 10. Qb3 {[%emt 0:00:16]} Ne7 {[%emt 0:02:22][%cal Bc6e7,Be7g6,Bg6f4][%mdl 32]} 11. Re1 {[%emt 0:00:43] [#]} c6 $146 {[%emt 0:00:20] [#] And now ...d5 would win.} ({Predecessor:} 11... g5 12. Nbd2 Ng6 13. Nf1 g4 14. N3d2 Nf4 15. Ne3 h5 16. d4 Nh7 17. dxe5 Bxe5 {½-½ (38) Sidhant,M (2344)-Indjic,A (2630) Caleta 2019}) 12. Qa2 {[%emt 0:02:13]} g5 {[%emt 0:04:38][%cal Bg6g5,Bg5g4][%mdl 32]} 13. Bb3 {[%emt 0:09:06]} Ng6 {[%emt 0:00:53]} 14. Na3 {[%emt 0:04:13][%cal Bb1a3,Ba3c4,Bc4b6,Bb6c8][%mdl 32]} g4 {[%emt 0:02:32]} 15. Nd2 {[%emt 0:00:10]} Nf4 {[%emt 0:01:42]} 16. Qc2 {[%emt 0:02:35]} Nh7 {[%emt 0:05:56]} 17. Nac4 {[%emt 0:02:08]} Qf6 {[%emt 0:08:43]} (17... Be6 $11) 18. Nf1 {[%emt 0:11:48]} (18. Nb6 $16 Rb8 19. Nxc8 Rbxc8 20. Nc4) 18... Ng5 $11 {[%emt 0:05:15]} 19. Bxf4 {[%emt 0:01:10]} exf4 {[%emt 0:00:17]} 20. d4 {[%emt 0:00:06]} Qg6 {[%emt 0:02:27]} 21. Nb6 {[%emt 0:01:29]} Rb8 {[%emt 0:02:39]} 22. Kh1 {[%emt 0:07:35][%cal Bg1h1,Bh1g2,Bg2f3][%mdl 32]} h5 {[%emt 0:02:33]} (22... Re8 $1 $15) 23. Nd2 $36 {[%emt 0:06:55][%mdl 2048] White has the initiative.} h4 {[%emt 0:09:25]} 24. f3 {[%emt 0:07:52]} (24. Nxc8 $14 Rbxc8 25. Qd1) 24... h3 {[%emt 0:06:19]} 25. Nxc8 {[%emt 0:07:04] Pair of Knights!} (25. Re2 {is interesting.} g3 26. Nxc8 Rbxc8 27. e5) 25... hxg2+ {[%emt 0:00:21]} 26. Kxg2 {[%emt 0:00:08] [#] aiming for Ne7+.} gxf3+ {[%emt 0:00:47]} 27. Nxf3 {[%emt 0:03:39]} Nxf3+ {[%emt 0:01:46]} 28. Kxf3 {[%emt 0:00:06] Ne7+ is the strong threat. Really sharp!} Qh5+ {[%emt 0:00:41]} (28... Rbxc8 $11 {should be considered.} 29. Qg2 Qh7) 29. Kg2 $14 {[%emt 0:00:07]} Rbxc8 {[%emt 0:00:16]} 30. Qe2 {[%emt 0:00:43]} (30. Qd1 $5 {[%cal Rd1h5]} Qh4 31. Kh1 $16) 30... Qh6 {[%emt 0:02:33]} (30... Qxe2+ $1 $14 31. Rxe2 c5) 31. Rad1 $16 {[%emt 0:00:48] Active counter play!} ({Resist} 31. Qg4 c5 $14) 31... c5 {[%emt 0:01:18]} 32. Qf3 {[%emt 0:07:02]} cxd4 {[%emt 0:00:19]} 33. cxd4 {[%emt 0:00:01]} Rc7 {[%emt 0:00:40]} 34. e5 {[%emt 0:01:21]} (34. Rf1 $16) 34... dxe5 $11 {[%emt 0:00:47]} 35. dxe5 {[%emt 0:00:01]} Rc6 {[%emt 0:03:45] Weighted Error Value: White=0.21 (precise) /Black=0.21 (precise)} (35... Re7 $11 {keeps the balance.}) 1/2-1/2

[Event "67th Mexican-ch Open 2022"]
[Site "Chihuahua"]
[Date "2022.04.16"]
[Round "6.11"]
[White "Benitez Lozano, Javier"]
[Black "Gonzalez Arroyo, Lenin"]
[Result "0-1"]
[ECO "A25"]
[WhiteElo "2309"]
[BlackElo "2210"]
[Annotator "TA"]
[PlyCount "80"]
[EventDate "2022.04.12"]
[EventType "swiss"]
[EventCountry "MEX"]
[SourceTitle "playchess.com"]
[Source "ChessBase"]
[SourceQuality "1"]
[TimeControl "5400+30"]

{[%evp 11,80,18,38,46,43,19,80,2,59,25,33,5,38,14,9,18,22,16,24,-11,15,0,24,1,108,96,97,70,64,75,58,58,74,73,95,70,149,89,102,92,93,50,50,57,72,-62,-16,-16,-12,-38,-31,-62,-46,-157,-146,-240,-229,-235,-217,-315,-269,-536,-485,-29985,-29986,-29986,-29987,-29989,-29990,-29992,-29992]} 1. c4 {[%emt 0:00:45]} e5 {[%emt 0:00:56]} 2. Nc3 {[%emt 0:01:00]} Nc6 {[%emt 0:01:16]} 3. Nf3 {[%emt 0:00:35]} g6 {[%emt 0:03:37]} 4. e3 {[%emt 0:08:49]} Bg7 {[%emt 0:01:48]} 5. d4 {[%emt 0:03:58]} d6 {[%emt 0:01:26]} 6. Be2 {[%emt 0:04:25]} Nge7 {[%emt 0:01:03]} 7. d5 {[%emt 0:05:48] A25: English Opening vs King's Indian with ...Nc6 but without early d3.} Nb8 {[%emt 0:00:25][%cal Bc6b8,Bb8a6,Ba6c5][%mdl 32]} 8. h4 {[%emt 0:03:48] [#]} h5 $146 {[%emt 0:01:25]} (8... h6 $11) ({Predecessor:} 8... h6 9. h5 g5 10. Nd2 f5 11. e4 O-O 12. g4 fxg4 13. Bxg4 Bxg4 14. Qxg4 Rf4 {1-0 (60) Reinderman,D (2573)-L'Ami,E (2610) Dieren 2017}) 9. b3 {[%emt 0:05:12]} (9. e4 $16) 9... a5 {[%emt 0:13:04]} (9... e4 $11 10. Nd4 c5) 10. Bb2 {[%emt 0:01:45]} Na6 {[%emt 0:03:37]} 11. Ng5 {[%emt 0:04:58]} Nc5 {[%emt 0:02:37]} 12. Qc2 {[%emt 0:04:50]} (12. a3 $5 {[%cal Rb3b4]}) 12... Nf5 {[%emt 0:01:34][%cal Of5h4]} 13. g3 {[%emt 0:01:37]} Qe7 {[%emt 0:04:01]} 14. Bf3 {[%emt 0:14:02]} Bd7 {[%emt 0:04:19]} 15. Nb5 {[%emt 0:03:46]} Na6 {[%emt 0:17:34]} 16. a3 {[%emt 0:07:42]} Rc8 {[%emt 0:01:51]} 17. Rd1 {[%emt 0:06:42]} Bxb5 {[%emt 0:04:05]} (17... O-O $11 {remains equal.}) 18. cxb5 $16 {[%emt 0:00:21]} Nc5 {[%emt 0:00:19]} 19. b4 {[%emt 0:07:27]} axb4 {[%emt 0:00:34]} 20. axb4 {[%emt 0:00:03]} Nd7 {[%emt 0:01:37]} 21. Ra1 {[%emt 0:01:03]} Nb6 {[%emt 0:05:15]} 22. Ra7 {[%emt 0:01:58]} Rb8 {[%emt 0:05:52]} 23. O-O {[%emt 0:05:26][%cal Oa7b7]} O-O {[%emt 0:00:30] [#]} (23... Bh6 $1 $14) 24. Rc1 {[%emt 0:04:21]} (24. Bxh5 $142 $1 {[%mdl 512]} Nxd5 (24... Bh6 25. Bf3) 25. Qb3 $1) 24... Rfc8 {[%emt 0:00:17] [#]} 25. Bxh5 $1 {[%emt 0:00:51][%mdl 512] Bg4 is the strong threat.} Bh6 {[%emt 0:00:52]} (25... Bf6 26. Bf3) 26. Bg4 {[%emt 0:01:44]} Bxg5 {[%emt 0:01:09]} 27. hxg5 {[%emt 0:00:30]} ({Much weaker is} 27. Bxf5 gxf5 28. hxg5 Qxg5 $15) 27... Qxg5 {[%emt 0:00:12] [#]} 28. Bxf5 {[%emt 0:00:32]} ({White should play} 28. Bf3 $1 $16) 28... Qxf5 {[%emt 0:01:35]} (28... gxf5 $15 {should be considered.} 29. e4 fxe4 30. Qxe4 Qd2) 29. e4 $1 $11 {[%emt 0:00:29]} ({But not} 29. Qxf5 gxf5 30. Rd1 Kf8 $17) 29... Qh3 {[%emt 0:02:46]} 30. Qd3 {[%emt 0:00:21]} Kg7 {[%emt 0:02:34]} 31. Qf3 {[%emt 0:00:29]} Qd7 $1 {[%emt 0:00:35]} 32. Ra5 {[%emt 0:00:41]} ({White should try} 32. Bc3 $15) 32... Rh8 $17 {[%emt 0:00:40][%cal Bc8h8,Bh8h5,Bh5h1][%mdl 32]} 33. Rc3 {[%emt 0:00:30]} (33. Ra3 $17) 33... Rh5 {[%emt 0:00:36]} 34. Bc1 {[%emt 0:00:27]} Rbh8 {[%emt 0:00:15][%cal Oh5h1] aiming for ...Rh1+!} 35. Kf1 {[%emt 0:00:30]} (35. Be3 $142) 35... Na4 {[%emt 0:03:39]} 36. Rc2 {[%emt 0:00:33]} (36. Rc4) 36... b6 $19 {[%emt 0:00:13]} 37. Ra7 {[%emt 0:00:29]} (37. Rxa4 $19 Qxb5+ 38. Ke1 Qxa4 39. Rxc7 Rh1+ 40. Kd2 Qa2+ 41. Rc2) 37... Rh1+ {[%emt 0:00:43] Black mates.} 38. Ke2 {[%emt 0:00:11]} Qxb5+ {[%emt 0:00:08]} 39. Kd2 {[%emt 0:00:45]} Qxb4+ {[%emt 0:00:11]} 40. Kd3 {[%emt 0:00:32]} Qb3+ {[%emt 0:15:20] Weighted Error Value: White=0.63/Black=0.21 (precise)} 0-1

[Event "67th Mexican-ch Open 2022"]
[Site "Chihuahua"]
[Date "2022.04.16"]
[Round "6.12"]
[White "Palma Villanueva, Miguel Ta"]
[Black "Figueredo Losada, Leonel"]
[Result "0-1"]
[ECO "C77"]
[WhiteElo "2210"]
[BlackElo "2342"]
[Annotator "TA"]
[PlyCount "82"]
[EventDate "2022.04.12"]
[EventType "swiss"]
[EventCountry "MEX"]
[SourceTitle "playchess.com"]
[Source "ChessBase"]
[SourceQuality "1"]
[TimeControl "5400+30"]

{[%evp 16,82,0,-3,28,-8,-18,-27,-19,-46,-44,-32,-33,-46,-20,-46,-46,-46,-47,-88,-89,-120,-102,-115,-103,-153,-127,-129,-130,-132,-125,-229,-199,-201,-187,-172,-171,-211,-198,-179,-174,-298,-298,-287,-284,-285,-241,-337,-331,-445,-452,-427,-363,-531,-541,-775,-741,-888,-850,-1043,-1004,-977,-987,-982,-971,-5177,-4606,-1797,-1509]} 1. e4 {[%emt 0:00:05]} e5 {[%emt 0:00:43]} 2. Nf3 {[%emt 0:00:05]} Nc6 {[%emt 0:00:04]} 3. Bb5 {[%emt 0:00:04]} a6 {[%emt 0:00:36]} 4. Ba4 {[%emt 0:00:19]} Nf6 {[%emt 0:00:27]} 5. d3 {[%emt 0:00:25]} d6 {[%emt 0:00:09]} 6. c4 {[%emt 0:01:53]} g6 {[%emt 0:00:06]} 7. O-O {[%emt 1:31:09]} Bg7 {[%emt 0:00:02]} 8. h3 {[%emt 0:00:00]} O-O {[%emt 0:00:05]} 9. Nc3 {[%emt 0:00:00]} Nd7 {[%emt 0:01:22] C77: Ruy Lopez: 3...a6 4 Ba4 Nf6, unusual lines.} 10. Be3 {[%emt 0:00:00]} (10. Bg5 $5 {[%cal Rg5d8]} f6 11. Be3 $11) 10... Nd4 {[%emt 0:17:27]} 11. Bxd7 {[%emt 0:00:00] [#]} Bxd7 $146 {[%emt 0:02:18] Black has an edge.} ({Predecessor:} 11... Nxf3+ 12. Qxf3 Bxd7 13. Qg3 h6 14. Rad1 Be6 15. Nd5 c6 16. Bb6 Qd7 17. Nc7 Rac8 18. Nxe6 Qxe6 {½-½ (36) Matinian,N (2475)-Vdovin,V (2377) Moscow 2015}) 12. Bxd4 {[%emt 0:00:00]} exd4 {[%emt 0:00:04]} 13. Ne2 {[%emt 0:00:00]} c5 {[%emt 0:00:52]} 14. Nf4 {[%emt 0:00:00]} b5 {[%emt 0:00:11]} 15. Re1 {[%emt 0:00:00]} bxc4 {[%emt 0:05:17]} 16. dxc4 {[%emt 0:00:00]} Rb8 {[%emt 0:00:03]} 17. Nd3 {[%emt 0:00:00]} Re8 {[%emt 0:02:33] White is now going downhill.} 18. Qc2 {[%emt 0:00:00]} Bc6 {[%emt 0:11:25]} 19. Nf4 {[%emt 0:00:00]} Qa5 {[%emt 0:02:41]} 20. Re2 {[%emt 0:00:00]} ({White should play} 20. Nd5) 20... Rxb2 {[%emt 0:17:05]} 21. Qxb2 {[%emt 0:00:00] aiming for Nd3.} d3 $1 {[%emt 0:00:05][%mdl 64] [#] Discovered Attack} 22. Qd2 {[%emt 0:00:00]} Qxd2 {[%emt 0:00:18] &Nero is more active.} 23. Nxd2 {[%emt 0:00:00]} (23. Rxd2 $17 Bxa1 24. Rxd3) 23... dxe2 $19 {[%emt 0:00:40]} ({Weaker is} 23... Bxa1 24. Nxd3 Bc3 25. f3 $17) 24. Re1 {[%emt 0:00:00]} f5 {[%emt 0:04:12]} 25. Rxe2 {[%emt 0:00:44]} fxe4 {[%emt 0:00:12]} 26. Nd5 {[%emt 0:03:55]} Bxd5 {[%emt 0:00:14]} 27. cxd5 {[%emt 0:00:01][%mdl 4096] Endgame KRB-KRN} Re5 {[%emt 0:00:06]} 28. Rxe4 {[%emt 0:00:08]} (28. Nxe4 {is a better defense.} Rxd5 29. Kf1) 28... Rxd5 {[%emt 0:00:05]} 29. Nc4 {[%emt 0:00:06]} Rd1+ {[%emt 0:00:50]} 30. Kh2 {[%emt 0:00:02]} Kf7 {[%emt 0:01:00]} 31. Re3 {[%emt 0:02:53]} Rd4 {[%emt 0:02:04]} 32. Na5 {[%emt 0:01:22]} Bf6 {[%emt 0:01:57]} ({But not} 32... Ra4 $2 33. Nc6 $19) 33. Ra3 {[%emt 0:01:37]} c4 {[%emt 0:01:27] Prevents Nb3. Threatens to win with ...d5.} 34. Rf3 {[%emt 0:01:13]} (34. Kg3 $142) 34... d5 {[%emt 0:00:55][%cal Bd6d5,Bd5d4,Bd4d3][%mdl 32] Black is clearly winning.} 35. Nc6 {[%emt 0:00:44]} Re4 {[%emt 0:00:04]} 36. Nb4 {[%emt 0:00:14]} Ke6 {[%emt 0:01:15]} 37. Ra3 {[%emt 0:00:24]} Be7 {[%emt 0:03:47]} 38. Rxa6+ {[%emt 0:00:21]} Bd6+ {[%emt 0:00:02]} 39. g3 {[%emt 0:00:07]} d4 {[%emt 0:00:28] [#] Hoping for ...d3.} 40. Ra4 {[%emt 0:02:01]} Bxb4 {[%emt 0:00:24]} 41. Rxb4 {[%emt 0:00:05]} d3 {[%emt 0:00:03] Weighted Error Value: White=0.79/Black=0.07 (flawless)} 0-1

[Event "67th Mexican-ch Open 2022"]
[Site "Chihuahua"]
[Date "2022.04.16"]
[Round "6.13"]
[White "Garcia Guerrero, Isaac Antonio"]
[Black "Hernandez Jimenez, Alexander Andres"]
[Result "1-0"]
[ECO "A22"]
[WhiteElo "2338"]
[BlackElo "2167"]
[Annotator "TA"]
[PlyCount "65"]
[EventDate "2022.04.12"]
[EventType "swiss"]
[EventCountry "MEX"]
[SourceTitle "playchess.com"]
[Source "ChessBase"]
[SourceQuality "1"]
[TimeControl "5400+30"]

{[%evp 10,65,26,4,10,9,8,12,45,6,30,20,33,30,57,30,43,13,6,11,12,0,0,0,10,12,25,25,75,26,114,90,87,87,92,90,93,89,195,181,181,181,170,152,160,169,171,172,154,144,287,287,444,444,411,378,1079,126]} 1. c4 {[%emt 0:00:01]} Nf6 {[%emt 0:05:38]} 2. g3 {[%emt 0:00:15]} e5 {[%emt 0:01:56]} 3. Bg2 {[%emt 0:00:22]} d5 {[%emt 0:00:07]} 4. cxd5 {[%emt 0:00:37]} Nxd5 {[%emt 0:00:11]} 5. Nc3 {[%emt 0:00:14]} Nb6 {[%emt 0:01:21]} 6. e3 {[%emt 0:00:10]} Be7 {[%emt 0:03:03] A22: English Opening: 1...e5 2 Nc3 Nf6.} 7. Nge2 {[%emt 0:00:24]} O-O {[%emt 0:04:51]} 8. O-O {[%emt 0:01:38]} c6 {[%emt 0:02:01] The position is equal.} (8... Nc6 {keeps more tension.} 9. f4 f6 10. d4 Bg4) 9. f4 {[%emt 0:00:59]} exf4 {[%emt 0:03:50]} 10. Nxf4 {[%emt 0:00:56]} N8d7 {[%emt 0:01:10]} 11. b3 {[%emt 0:01:57]} Nc5 {[%emt 0:03:57]} 12. Bb2 {[%emt 0:06:49]} Ne6 {[%emt 0:04:07] [#]} 13. Nce2 $146 {[%emt 0:19:51]} ({Predecessor:} 13. Nh5 g6 14. Nf4 Bf6 15. Qc2 Nxf4 16. Rxf4 Be5 17. Rff1 Be6 18. Rad1 Bf5 19. Rxf5 gxf5 {1-0 (42) Lei,T (2449)-Li,X (2226) Xinghua 2015}) 13... Nxf4 {[%emt 0:16:17]} 14. Nxf4 {[%emt 0:00:53]} Bf6 {[%emt 0:01:08]} 15. d4 {[%emt 0:03:46]} Nd5 {[%emt 0:04:00]} 16. Qd3 {[%emt 0:10:24]} Nxf4 {[%emt 0:06:59]} 17. Rxf4 {[%emt 0:02:14]} Bg5 {[%emt 0:01:05]} 18. Rf2 $36 {[%emt 0:01:53][%mdl 2048] White has good play.} f5 {[%emt 0:00:39]} (18... Be6 $11) 19. Raf1 {[%emt 0:15:39]} ({White should try} 19. d5 $16) 19... Bf6 {[%emt 0:07:03]} (19... Re8 $11 {keeps the balance.}) 20. e4 {[%emt 0:02:14]} fxe4 {[%emt 0:06:12]} 21. Bxe4 {[%emt 0:01:13]} Bh3 {[%emt 0:00:53]} 22. Bxh7+ {[%emt 0:08:26]} Kh8 {[%emt 0:00:01]} 23. Re1 {[%emt 0:00:55] [#] And now Bg6 would win.} c5 {[%emt 0:12:06]} (23... Qa5 $16 24. Bc3 Qb5) 24. Be4 {[%emt 0:05:20]} ({Not} 24. dxc5 $2 Bxb2 25. Qxd8 (25. Rxb2 $2 Qf6 $19) 25... Raxd8 26. Rxb2 Kxh7 $19) 24... Bxd4 {[%emt 0:01:51]} 25. Bxd4 {[%emt 0:00:13]} Qxd4 {[%emt 0:00:21]} 26. Qxd4 {[%emt 0:00:34]} cxd4 {[%emt 0:00:03]} 27. Bxb7 {[%emt 0:00:53] &Bianco is more active.} Rxf2 {[%emt 0:00:45]} 28. Kxf2 $18 {[%emt 0:00:29] KRB-KRB} Rf8+ {[%emt 0:00:18]} 29. Ke2 {[%emt 0:03:01]} Bg4+ {[%emt 0:02:01]} (29... Bf5 $16 {was worth a try.} 30. Kd2 Bg6) 30. Kd3 {[%emt 0:00:09]} Rf2 {[%emt 0:00:10]} (30... g6 {keeps fighting.} 31. Re5 Kg7) 31. Re8+ {[%emt 0:00:44]} Kh7 {[%emt 0:00:02]} 32. Be4+ {[%emt 0:00:11]} Kh6 $2 {[%emt 0:03:13] [#]} (32... Bf5 33. Bxf5+ (33. Kxd4 Bxe4 34. Rxe4 Rxa2 $16) 33... Rxf5) 33. Rh8+ {[%emt 0:00:35] Weighted Error Value: White=0.09 (flawless) /Black=0.31} 1-0

[Event "67th Mexican-ch Open 2022"]
[Site "Chihuahua"]
[Date "2022.04.16"]
[Round "6.14"]
[White "Sandoval Mercado, Carlos"]
[Black "Luna Javier, Edgar Froylan"]
[Result "1-0"]
[ECO "D79"]
[WhiteElo "2289"]
[BlackElo "2148"]
[Annotator "TA"]
[PlyCount "97"]
[EventDate "2022.04.12"]
[EventType "swiss"]
[EventCountry "MEX"]
[SourceTitle "playchess.com"]
[Source "ChessBase"]
[SourceQuality "1"]
[TimeControl "5400+30"]

{[%evp 15,97,11,4,18,22,0,7,0,0,0,0,-6,0,-3,0,0,-2,-4,0,0,31,33,34,31,32,20,237,242,295,303,622,615,906,926,1066,976,1477,1523,5094,2455,29980,29981,29981,29982,29995,1253,1550,480,29990,869,29994,29995,29995,2617,29996,1074,940,940,879,644,644,644,637,581,1887,1561,1073,637,608,0,1137,637,629,629,622,622,622,622,622,622,600,531,525,512]} 1. d4 {[%emt 0:00:03]} Nf6 {[%emt 0:04:41]} 2. c4 {[%emt 0:00:10]} g6 {[%emt 0:00:15]} 3. Nf3 {[%emt 0:00:28]} Bg7 {[%emt 0:00:12]} 4. g3 {[%emt 0:00:05]} O-O {[%emt 0:00:15]} 5. Bg2 {[%emt 0:00:03]} c6 {[%emt 0:01:49]} 6. O-O {[%emt 0:00:06]} d5 {[%emt 0:00:09]} 7. cxd5 {[%emt 0:00:05]} cxd5 {[%emt 0:00:05]} 8. Ne5 {[%emt 0:00:03]} Nfd7 {[%emt 0:00:41]} 9. f4 {[%emt 0:11:07] D79: Fianchetto Grünfeld: Symmetrical Variation (6 0-0 c6 7 cxd5 cxd5).} Nxe5 {[%emt 0:02:12]} 10. fxe5 {[%emt 0:03:12]} Nc6 {[%emt 0:04:10]} 11. Nc3 {[%emt 0:01:01] The position is equal.} Be6 {[%emt 0:03:07]} 12. Kh1 {[%emt 0:14:18]} Qd7 {[%emt 0:04:29] [#]} 13. Bf4 $146 {[%emt 0:15:56]} ({Predecessor:} 13. Qa4 Bh3 14. Bxh3 Qxh3 15. Bf4 Rad8 16. Rad1 f6 17. e6 Qxe6 {½-½ (17) Turov,M (2553)-Galkin,A (2584) Elista 2001}) 13... Rfd8 {[%emt 0:05:06]} 14. Qd2 {[%emt 0:06:57]} Rac8 {[%emt 0:04:29]} (14... Bh3 {keeps more tension.} 15. Bh6 Bxg2+ 16. Kxg2 Rf8) 15. Rad1 {[%emt 0:02:06]} Bh3 {[%emt 0:03:05]} 16. Bh6 {[%emt 0:03:23]} Bxg2+ {[%emt 0:06:41]} 17. Kxg2 {[%emt 0:02:48]} Bh8 {[%emt 0:00:53][%cal Ob7b5]} 18. Rf2 {[%emt 0:17:16]} f6 {[%emt 0:07:02]} 19. Qf4 {[%emt 0:00:02]} Qe6 {[%emt 0:16:59][%cal Rf6e5]} 20. Rdf1 {[%emt 0:00:03]} g5 $2 {[%emt 0:02:41] Black is on the road to losing.} (20... Na5 $11 {and Black has nothing to worry.}) 21. Qd2 $40 {[%emt 0:04:26][%mdl 128] Black is in trouble.} Nb8 {[%emt 0:22:10]} 22. Rf5 {[%emt 0:06:24]} b5 $2 {[%emt 0:05:38]} (22... Nd7 23. exf6 Bxf6 24. Rxg5+ (24. Rxd5 Nb6 $16) 24... Bxg5 25. Qxg5+ Qg6) 23. Qe3 $18 {[%emt 0:04:35][%cal Oe5f6]} Qc6 {[%emt 0:03:17]} 24. h4 {[%emt 0:03:01]} gxh4 {[%emt 0:00:35]} 25. e6 {[%emt 0:02:24][%cal Of5g5]} h3+ {[%emt 0:01:20]} 26. Kxh3 {[%emt 0:00:10][%cal Of5g5] [#] Rg5+! would kill now.} Bg7 {[%emt 0:00:47]} 27. Bxg7 {[%emt 0:01:04][%cal Of1f4]} Kxg7 {[%emt 0:00:01]} 28. Rh5 {[%emt 0:00:05]} Kh8 {[%emt 0:00:59]} 29. Kg2 {[%emt 0:01:41]} Qe8 {[%emt 0:00:39] [#]} 30. Qh6 {[%emt 0:02:28]} (30. Rxh7+ $142 $3 {[%mdl 512]} Kxh7 31. Rh1+ Kg8 32. Qh6 Qh5 33. Rxh5 Rf8 34. Qh8#) 30... Qg8 {[%emt 0:00:29]} 31. Nxd5 {[%emt 0:00:00]} (31. Rfh1 $142 {White wants to mate with R1h4.} Nc6 32. Nxd5 Rxd5 33. Rxd5) 31... Nc6 {[%emt 0:00:30]} (31... Rxd5 $18 32. Rxd5 Qxe6) 32. Rfh1 {[%emt 0:00:14]} (32. Nf4 $142 Rd5 33. Ng6+ Qxg6 34. Qxg6 Rxh5 35. Qxh5 Rg8 36. Rh1 Rg7 37. d5) 32... Qg7 {[%emt 0:00:31]} 33. Qxh7+ {[%emt 0:00:37]} Qxh7 {[%emt 0:00:02]} 34. Rxh7+ {[%emt 0:00:04]} Kg8 {[%emt 0:00:03]} 35. Nxe7+ {[%emt 0:00:25]} (35. Nf4 $142 f5 36. R1h6 Rxd4 37. Rh8+ Kg7 38. Nh5#) 35... Nxe7 {[%emt 0:00:08]} 36. Rxe7 {[%emt 0:00:02] Strongly threatening Rhh7.} Rxd4 {[%emt 0:00:52][%mdl 4096] Endgame KRR-KRR} 37. Rhh7 {[%emt 0:00:15] White threatens Reg7+ and mate.} Rg4 {[%emt 0:01:03] Prevents Reg7+.} 38. Rxa7 {[%emt 0:00:01]} Re8 {[%emt 0:00:19]} 39. Rhe7 {[%emt 0:00:57][%cal Re7e8]} Rc8 {[%emt 0:00:21]} 40. Rab7 {[%emt 0:00:22]} Rg5 {[%emt 0:00:17]} 41. Red7 {[%emt 0:00:33]} Re8 {[%emt 0:00:32]} 42. Re7 {[%emt 0:00:22][%cal Re7e8]} Rc8 {[%emt 0:00:25]} 43. Rf7 {[%emt 0:00:19] White is clearly winning.} Rf8 {[%emt 0:00:40]} 44. Rxf8+ {[%emt 0:00:44]} Kxf8 {[%emt 0:00:02]} 45. Rf7+ {[%emt 0:00:17]} Ke8 {[%emt 0:00:09]} 46. Rxf6 {[%emt 0:00:03]} Ke7 {[%emt 0:00:05]} 47. Rf4 {[%emt 0:01:31]} Kxe6 {[%emt 0:00:15]} 48. g4 {[%emt 0:00:04]} Rc5 {[%emt 0:00:10]} 49. Rf5 {[%emt 0:02:40] Weighted Error Value: White=0.71/Black=1.05} 1-0